fUST/lending_fUST_20251022
["ID","MTS","AMOUNT","RATE_DAILY","PERIOD"]
[392023939,1761107431891,218.72485933,0.000238,2]
[392023942,1761107431911,-500.0201101,0.000239,2]
[392023944,1761107431920,-436.87088536,0.00023979,2]
[392023947,1761107431961,-164.95189638,0.00023979,2]
[392023948,1761107431970,-220.95648991,0.00023981,2]
[392023949,1761107431981,-300.0,0.00023999,2]
[392023950,1761107431990,-300.0,0.00023999,2]
[392023951,1761107431999,-300.0,0.00023999,2]
[392023952,1761107432008,-1200.0,0.00023999,2]
[392023953,1761107432018,-31222.56056101,0.00024,2]
[392023954,1761107432027,-2701.95,0.00024067,2]
[392023955,1761107432036,-487.49,0.00024071,10]
[392023956,1761107432045,-508.36924546,0.00024073,2]
[392023957,1761107432054,-5568.35185859,0.00024079,2]
[392023966,1761107437794,-305.97241648,0.00024078,2]
[392023967,1761107437804,-198.0,0.00024078,2]
[392023968,1761107437813,-500.0,0.00024078,2]
[392023969,1761107437823,-407.96102806,0.00024078,2]
[392023970,1761107437832,-283.15027645,0.00024078,2]
[392023971,1761107437841,-500.0,0.00024078,2]
[392023972,1761107437851,-510.53025479,0.00024078,2]
[392023973,1761107437861,-44431.64814141,0.00024079,2]
[392023974,1761107437870,-7614.44338578,0.0002408,2]
[392023975,1761107437887,-5769.32474105,0.0002408,2]
[392023976,1761107437912,-7789.04555447,0.0002408,2]
[392023977,1761107437921,-1136.14125187,0.00024142,2]
[392023978,1761107437930,-1200.0,0.00024191,2]
[392023979,1761107437939,-10351.8500863,0.00024192,30]
[392023980,1761107437949,-171.3679409,0.00024731,2]
[392023981,1761107437958,-666.0,0.00024731,2]
[392023982,1761107437968,-189.279845,0.0002478,10]
[392023983,1761107437977,-168.0,0.00024803,2]
[392023984,1761107437987,-260.7286581,0.00024981,2]
[392023985,1761107437996,-3152.27,0.00024993,2]
[392023986,1761107438006,-189.279845,0.00025,2]
[392023987,1761107438015,-174.83249703,0.00025497,2]
[392023988,1761107438025,-52877.7613105,0.00025498,2]
[392023989,1761107438034,-601.82278169,0.00025531,2]
[392023990,1761107438044,-160.0,0.00025646,2]
[392023991,1761107438053,-1004.06232079,0.0002587,2]
[392023992,1761107438063,-3602.6,0.00025918,2]
[392023993,1761107438072,-300.50082628,0.00025981,2]
[392023994,1761107438082,-420.0,0.00026026,2]
[392023995,1761107438091,-408.09124956,0.00026073,2]
[392023996,1761107438100,-1200.0,0.00026145,2]
[392023997,1761107438110,-260.0,0.00026194,2]
[392023998,1761107438119,-934.0,0.00026228,2]
[392023999,1761107438131,-189.279845,0.00026495,14]
[392024000,1761107438140,-360.0,0.00026742,2]
[392024001,1761107438149,-4052.92,0.00026844,2]
[392024002,1761107438160,-340.27299446,0.00026981,2]
[392024003,1761107438169,-601.82278169,0.00027084,2]
[392024004,1761107438179,-364.3522739,0.00027238,2]
[392024005,1761107438188,-1116.6237315,0.00027251,2]
[392024006,1761107438197,-460.0,0.0002729,2]
[392024007,1761107438208,-189.279845,0.00027355,10]
[392024008,1761107438218,-189.279845,0.00027498,2]
[392024009,1761107438228,-199.0,0.00027671,7]
[392024010,1761107438237,-1346.27,0.000277,7]
[392024011,1761107438247,-4503.25,0.00027769,2]
[392024012,1761107438256,-560.0,0.00027838,2]
[392024013,1761107438266,-380.04516265,0.00027981,2]
[392024014,1761107438275,-587.0,0.00028223,2]
[392024015,1761107438285,-660.0,0.00028386,2]
[392024016,1761107438295,-601.82278169,0.00028636,2]
[392024017,1761107438305,-177.869,0.00028655,20]
[392024018,1761107438314,-385.38,0.00028655,20]
[392024019,1761107438324,-189.279845,0.00028901,14]
[392024020,1761107438333,-617.97539759,0.00028934,2]
[392024021,1761107438343,-501.23381446,0.00028973,5]
[392024022,1761107438352,-500.0,0.00028973,5]
[392024023,1761107438361,-548.19929627,0.00028973,5]
[392024024,1761107438370,-419.81733083,0.00028981,2]
[392024025,1761107438381,-100000.0,0.0002899,2]
[392024026,1761107438391,-983.0,0.00029033,2]
[392024027,1761107438400,-632.0,0.00029033,2]
[392024028,1761107438409,-2164.0,0.00029033,2]
[392024029,1761107438419,-411.0,0.00029033,2]
[392024030,1761107438428,-429.892,0.00029033,2]
[392024031,1761107438438,-193.0,0.00029052,30]
[392024032,1761107438447,-2021.11721159,0.0002939,5]
[392024033,1761107438456,-1000.0,0.00029521,5]
[392024034,1761107438466,-83117.28032618,0.0002956,2]
[392024035,1761107438476,-10000.0,0.000298,2]
[392024036,1761107438485,-10000.0,0.000298,3]
[392024037,1761107438495,-52877.7613105,0.00029835,2]
[392024038,1761107438504,-15826.95654765,0.00029845,2]
[392024039,1761107438513,-5297.14,0.000299,7]
[392024040,1761107438522,-1346.27,0.000299,7]
[392024041,1761107438532,-189.279845,0.0002993,10]
[392024042,1761107438541,-1965.96164258,0.00029949,24]
[392024043,1761107438550,-459.58949902,0.00029981,2]
[392024044,1761107438559,-151.327613,0.00029995,2]
[392024045,1761107438569,-189.279845,0.00029995,2]
[392024046,1761107438578,-5000.0,0.0003,2]
[392024047,1761107438588,-5000.0,0.0003,2]
[392024048,1761107438597,-4138.11083488,0.0003,2]
[392024049,1761107438606,-1762.76632523,0.0003,2]
[392024050,1761107438616,-161.0,0.0003,15]
[392024051,1761107438626,-163.0564623,0.0003,15]
[392024052,1761107438635,-1708.65,0.0003,2]
[392024053,1761107438645,-1005.57870524,0.00030068,5]
[392024054,1761107438654,-52435.28710827,0.0003012,7]
[392024055,1761107438664,-285.69044956,0.0003013,2]
[392024056,1761107438674,-500.0,0.00030136,7]
[392024057,1761107438684,-153.91502951,0.00030136,7]
[392024058,1761107438692,-152.0600527,0.00030136,7]
[392024059,1761107438702,-153.05071237,0.00030136,7]
[392024060,1761107438712,-152.31240559,0.00030136,7]
[392024061,1761107438721,-269.40521474,0.00030136,7]
[392024062,1761107438730,-500.0,0.00030136,7]
[392024063,1761107438739,-500.0,0.00030136,7]
[392024064,1761107438749,-500.0,0.00030136,7]
[392024065,1761107438758,-259.21467354,0.00030136,7]
[392024066,1761107438771,-726.96,0.00030136,2]
[392024067,1761107438780,-366.52875608,0.00030136,7]
[392024068,1761107438789,-500.0,0.00030136,7]
[392024069,1761107438798,-500.0,0.00030136,7]
[392024070,1761107438810,-500.0,0.00030136,7]
[392024071,1761107438819,-654.05,0.00030136,3]
[392024072,1761107438828,-1269.67,0.00030136,2]
[392024073,1761107438838,-500.0,0.00030136,7]
[392024074,1761107438849,-189.279845,0.00030136,7]
[392024075,1761107438859,-500.0,0.00030136,7]
[392024076,1761107438868,-500.0,0.00030136,7]
[392024077,1761107438878,-500.0,0.00030136,7]
[392024078,1761107438888,-500.0,0.00030136,2]
[392024079,1761107438897,-500.0,0.00030136,7]
[392024080,1761107438906,-1047.70733852,0.00030138,120]
[392024081,1761107438916,-601.82278169,0.00030188,2]
[392024082,1761107438925,-671.03780639,0.0003022,2]
[392024083,1761107438935,-1210.13955709,0.00030249,26]
[392024084,1761107438945,-500.0,0.00030373,15]
[392024085,1761107438954,-3012.2478852,0.00030383,2]
[392024086,1761107438964,-500.0,0.0003041,7]
[392024087,1761107438974,-500.0,0.0003041,7]
[392024088,1761107438984,-500.0,0.0003041,7]
[392024089,1761107438993,-500.0,0.0003041,7]
[392024090,1761107439002,-726.96,0.0003041,2]
[392024091,1761107439012,-303.95024895,0.0003041,7]
[392024092,1761107439022,-500.0,0.0003041,7]
[392024093,1761107439031,-500.0,0.0003041,7]
[392024094,1761107439041,-654.05,0.0003041,3]
[392024095,1761107439050,-1269.67,0.0003041,2]
[392024096,1761107439060,-500.0,0.0003041,7]
[392024097,1761107439070,-500.0,0.0003041,7]
[392024098,1761107439080,-500.0,0.0003041,7]
[392024099,1761107439090,-500.0,0.0003041,7]
[392024100,1761107439100,-500.0,0.0003041,2]
[392024101,1761107439109,-500.0,0.0003041,7]
[392024102,1761107439118,-385.99,0.00030435,30]
[392024103,1761107439127,-823.0,0.00030607,2]
[392024104,1761107439137,-52877.7613105,0.00030674,2]
[392024105,1761107439147,-500.0,0.00030684,7]
[392024106,1761107439157,-500.0,0.00030684,7]
[392024107,1761107439167,-500.0,0.00030684,7]
[392024108,1761107439176,-500.0,0.00030684,7]
[392024109,1761107439186,-726.96,0.00030684,2]
[392024110,1761107439196,-500.0,0.00030684,7]
[392024111,1761107439206,-500.0,0.00030684,7]
[392024112,1761107439216,-654.05,0.00030684,3]
[392024113,1761107439225,-1269.67,0.00030684,2]
[392024114,1761107439235,-303.76715868,0.00030684,7]
[392024115,1761107439245,-500.0,0.00030684,7]
[392024116,1761107439254,-500.0,0.00030684,7]
[392024117,1761107439264,-500.0,0.00030684,7]
[392024118,1761107439273,-500.0,0.00030684,2]
[392024119,1761107439284,-500.0,0.00030684,7]
[392024120,1761107439293,-300.0,0.00030738,30]
[392024121,1761107439302,-500.0,0.00030921,15]
[392024122,1761107439311,-500.0,0.00030958,7]
[392024123,1761107439321,-500.0,0.00030958,7]
[392024124,1761107439330,-500.0,0.00030958,7]
[392024125,1761107439339,-500.0,0.00030958,7]
[392024126,1761107439349,-726.96,0.00030958,2]
[392024127,1761107439358,-500.0,0.00030958,7]
[392024128,1761107439367,-500.0,0.00030958,7]
[392024129,1761107439377,-654.05,0.00030958,3]
[392024130,1761107439387,-1269.67,0.00030958,2]
[392024131,1761107439396,-500.0,0.00030958,7]
[392024132,1761107439405,-500.0,0.00030958,7]
[392024133,1761107439415,-500.0,0.00030958,7]
[392024135,1761107439425,-500.0,0.00030958,2]
[392024136,1761107439434,-500.0,0.00030958,7]
[392024137,1761107439444,-499.3616672,0.00030981,2]
[392024138,1761107439453,-1052.12,0.00031,2]
[392024139,1761107439462,-161.0,0.00031,30]
[392024140,1761107439472,-161.0,0.00031,30]
[392024141,1761107439481,-161.0,0.00031,20]
[392024142,1761107439490,-161.0,0.00031,20]
[392024143,1761107439499,-420.0,0.00031,14]
[392024144,1761107439509,-161.0,0.00031,15]
[392024145,1761107439518,-5000.0,0.00031,2]
[392024146,1761107439527,-3418.0,0.00031,2]
[392024147,1761107439537,-30000.0,0.0003112,2]
[392024149,1761107439546,-179.65864857,0.00031146,6]
[392024151,1761107439555,-1052.12,0.00031174,2]
[392024153,1761107439566,-500.0,0.00031232,7]
[392024155,1761107439575,-500.0,0.00031232,7]
[392024157,1761107439585,-500.0,0.00031232,7]
[392024160,1761107439595,-500.0,0.00031232,7]
[392024162,1761107439604,-726.96,0.00031232,2]
[392024164,1761107439613,-500.0,0.00031232,7]
[392024166,1761107439623,-500.0,0.00031232,7]
[392024169,1761107439632,-654.05,0.00031232,3]
[392024170,1761107439641,-1269.67,0.00031232,2]
[392024172,1761107439650,-500.0,0.00031232,7]
[392024174,1761107439660,-500.0,0.00031232,7]
[392024175,1761107439669,-500.0,0.00031232,7]
[392024176,1761107439678,-500.0,0.00031232,2]
[392024177,1761107439687,-500.0,0.00031232,7]
[392024178,1761107439696,-1708.65,0.000313,2]
[392024179,1761107439706,-1346.27,0.000313,7]
[392024180,1761107439715,-189.279845,0.00031308,14]
[392024181,1761107439723,-1052.12,0.00031348,2]
[392024182,1761107439732,-189.279845,0.00031352,7]
[392024183,1761107439742,-5297.14,0.000314,7]
[392024184,1761107439752,-500.0,0.00031469,15]
[392024186,1761107439765,-500.0,0.00031506,7]
[392024187,1761107439775,-500.0,0.00031506,7]
[392024188,1761107439784,-500.0,0.00031506,7]
[392024189,1761107439793,-500.0,0.00031506,7]
[392024190,1761107439802,-726.96,0.00031506,2]
[392024191,1761107439811,-500.0,0.00031506,7]
[392024192,1761107439821,-500.0,0.00031506,7]
[392024193,1761107439830,-654.05,0.00031506,3]
[392024194,1761107439839,-1269.67,0.00031506,2]
[392024195,1761107439849,-500.0,0.00031506,7]
[392024196,1761107439859,-500.0,0.00031506,7]
[392024198,1761107439868,-500.0,0.00031506,7]
[392024200,1761107439877,-500.0,0.00031506,2]
[392024201,1761107439886,-500.0,0.00031506,7]
[392024203,1761107439895,-250.0,0.0003158,2]
[392024206,1761107440046,-601.82278169,0.0003174,2]
[392024207,1761107440055,-500.0,0.0003178,7]
[392024208,1761107440065,-500.0,0.0003178,7]
[392024209,1761107440075,-500.0,0.0003178,7]
[392024210,1761107440084,-500.0,0.0003178,7]
[392024211,1761107440093,-726.96,0.0003178,2]
[392024212,1761107440102,-500.0,0.0003178,7]
[392024213,1761107440111,-500.0,0.0003178,7]
[392024214,1761107440121,-654.05,0.0003178,3]
[392024215,1761107440130,-1269.67,0.0003178,2]
[392024216,1761107440140,-500.0,0.0003178,7]
[392024217,1761107440149,-500.0,0.0003178,7]
[392024218,1761107440159,-500.0,0.0003178,7]
[392024219,1761107440168,-500.0,0.0003178,2]
[392024220,1761107440177,-578.99,0.00031818,30]
[392024221,1761107440187,-33100.36424696,0.000319,2]
[392024222,1761107440196,-539.13383538,0.00031981,2]
[392024223,1761107440205,-1000.59911718,0.00032,5]
[392024224,1761107440214,-28964.86495792,0.00032001,5]
[392024225,1761107440224,-500.0,0.00032017,15]
[392024226,1761107440233,-983.0,0.00032033,2]
[392024227,1761107440246,-632.0,0.00032033,2]
[392024228,1761107440256,-2164.0,0.00032033,2]
[392024229,1761107440265,-411.0,0.00032033,2]
[392024230,1761107440275,-411.0,0.00032033,2]
[392024231,1761107440284,-52877.7613105,0.00032044,2]
[392024232,1761107440293,-500.0,0.00032054,7]
[392024233,1761107440302,-500.0,0.00032054,7]
[392024234,1761107440312,-500.0,0.00032054,7]
[392024235,1761107440321,-500.0,0.00032054,7]
[392024236,1761107440330,-726.96,0.00032054,2]
[392024237,1761107440339,-500.0,0.00032054,7]
[392024238,1761107440348,-500.0,0.00032054,7]
[392024239,1761107440357,-654.05,0.00032054,3]
[392024240,1761107440366,-1269.67,0.00032054,2]
[392024241,1761107440375,-630.27555651,0.00032054,7]
[392024242,1761107440385,-500.0,0.00032054,7]
[392024243,1761107440394,-500.0,0.00032054,7]
[392024244,1761107440403,-500.0,0.00032054,2]
[392024245,1761107440412,-157.07,0.00032205,15]
[392024246,1761107440421,-253.11,0.00032205,15]
[392024247,1761107440430,-157.07,0.00032305,15]
[392024248,1761107440440,-253.11,0.00032305,15]
[392024249,1761107440449,-500.0,0.00032328,7]
[392024250,1761107440459,-322.54899351,0.00032328,7]
[392024251,1761107440468,-193.6474805,0.00032328,7]
[392024252,1761107440477,-500.0,0.00032328,7]
[392024253,1761107440486,-726.96,0.00032328,2]
[392024254,1761107440495,-571.75574599,0.00032328,7]
[392024255,1761107440504,-500.0,0.00032328,7]
[392024256,1761107440513,-654.05,0.00032328,3]
[392024257,1761107440522,-1269.67,0.00032328,2]
[392024258,1761107440531,-500.0,0.00032328,7]
[392024259,1761107440540,-447.32862474,0.00032328,7]
[392024260,1761107440549,-500.0,0.00032328,2]
[392024261,1761107440558,-157.07,0.00032405,15]
[392024262,1761107440567,-253.11,0.00032405,15]
[392024263,1761107440576,-151.327613,0.00032492,2]
[392024264,1761107440585,-189.279845,0.00032492,2]
[392024265,1761107440594,-157.07,0.00032505,15]
[392024266,1761107440604,-151.327613,0.00032505,10]
[392024267,1761107440613,-189.279845,0.00032505,10]
[392024268,1761107440623,-253.11,0.00032505,15]
[392024269,1761107440632,-500.0,0.00032565,15]
[392024270,1761107440641,-151.327613,0.00032568,7]
[392024271,1761107440650,-189.279845,0.00032568,7]
[392024272,1761107440659,-1708.65,0.000326,2]
[392024273,1761107440668,-500.0,0.00032602,7]
[392024274,1761107440677,-500.0,0.00032602,7]
[392024275,1761107440686,-726.96,0.00032602,2]
[392024276,1761107440695,-500.0,0.00032602,7]
[392024277,1761107440704,-654.05,0.00032602,3]
[392024278,1761107440713,-1269.67,0.00032602,2]
[392024279,1761107440723,-500.0,0.00032602,7]
[392024280,1761107440732,-500.0,0.00032602,2]
[392024281,1761107440741,-157.07,0.00032605,15]
[392024282,1761107440750,-253.11,0.00032605,15]
[392024283,1761107440765,-1346.27,0.000327,7]
[392024284,1761107440774,-157.07,0.00032705,15]
[392024285,1761107440783,-253.11,0.00032705,15]
[392024286,1761107440793,-5297.14,0.000328,7]
[392024287,1761107440802,-157.07,0.00032805,15]
[392024288,1761107440811,-253.11,0.00032805,15]
[392024289,1761107440820,-500.0,0.00032876,7]
[392024290,1761107440830,-500.0,0.00032876,7]
[392024291,1761107440839,-726.96,0.00032876,2]
[392024292,1761107440848,-240.28452683,0.00032876,7]
[392024293,1761107440858,-654.05,0.00032876,3]
[392024294,1761107440867,-2999.0,0.00032876,120]
[392024295,1761107440876,-1269.67,0.00032876,2]
[392024296,1761107440885,-500.0,0.00032876,7]
[392024297,1761107440894,-500.0,0.00032876,2]
[392024298,1761107440903,-157.07,0.00032905,60]
[392024299,1761107440912,-177.8092372,0.00032905,2]
[392024300,1761107440921,-253.11,0.00032905,60]
[392024301,1761107440930,-578.90600357,0.00032981,120]
[392024302,1761107440940,-52877.7613105,0.0003299,2]
[392024303,1761107440948,-160.0,0.00033,33]
[392024304,1761107440957,-160.0,0.00033,60]
[392024305,1761107440966,-160.0,0.00033,45]
[392024306,1761107440975,-35513.96761015,0.00033,20]
[392024307,1761107440985,-1593.09739046,0.00033,2]
[392024308,1761107440993,-25560.65068044,0.00033,5]
[392024309,1761107441003,-157.07,0.00033005,60]
[392024310,1761107441012,-253.11,0.00033005,60]
[392024311,1761107441021,-157.07,0.00033105,60]
[392024312,1761107441030,-253.11,0.00033105,60]
[392024313,1761107441039,-500.0,0.00033113,30]
[392024314,1761107441049,-500.0,0.0003315,7]
[392024315,1761107441057,-500.0,0.0003315,7]
[392024316,1761107441067,-726.96,0.0003315,2]
[392024317,1761107441076,-654.05,0.0003315,3]
[392024318,1761107441085,-1269.67,0.0003315,2]
[392024319,1761107441095,-500.0,0.0003315,7]
[392024320,1761107441104,-500.0,0.0003315,2]
[392024321,1761107441113,-2781.1479469,0.00033151,2]
[392024322,1761107441123,-1152.0,0.00033191,2]
[392024323,1761107441132,-771.98,0.00033202,30]
[392024324,1761107441141,-157.07,0.00033205,60]
[392024325,1761107441150,-253.11,0.00033205,60]
[392024326,1761107441159,-23162.1516995,0.00033288,2]
[392024327,1761107441169,-601.82278169,0.00033293,2]
[392024328,1761107441178,-157.14177661,0.00033305,60]
[392024329,1761107441187,-253.11,0.00033305,60]
[392024330,1761107441197,-700.0,0.00033328,7]
[392024331,1761107441206,-177.8092372,0.0003339,2]
[392024332,1761107441215,-253.11,0.00033405,60]
[392024333,1761107441224,-500.0,0.00033424,7]
[392024334,1761107441233,-500.0,0.00033424,7]
[392024335,1761107441242,-726.96,0.00033424,2]
[392024336,1761107441251,-654.05,0.00033424,3]
[392024337,1761107441261,-1269.67,0.00033424,2]
[392024338,1761107441270,-500.0,0.00033424,7]
[392024339,1761107441279,-500.0,0.00033424,2]
[392024340,1761107441289,-253.11,0.00033505,60]
[392024341,1761107441298,-2999.0,0.00033561,120]
[392024342,1761107441307,-253.11,0.00033605,60]
[392024343,1761107441316,-500.0,0.00033661,30]
[392024344,1761107441325,-52877.7613105,0.00033688,2]
[392024345,1761107441334,-500.0,0.00033698,7]
[392024346,1761107441343,-500.0,0.00033698,7]
[392024347,1761107441352,-726.96,0.00033698,2]
[392024348,1761107441361,-654.05,0.00033698,3]
[392024349,1761107441370,-1269.67,0.00033698,2]
[392024350,1761107441380,-500.0,0.00033698,7]
[392024351,1761107441389,-500.0,0.00033698,2]
[392024352,1761107441398,-1708.65,0.000337,14]
[392024353,1761107441408,-253.11,0.00033705,60]
[392024354,1761107441417,-151.327613,0.00033714,14]
[392024355,1761107441426,-189.279845,0.00033714,14]
[392024356,1761107441435,-151.327613,0.00033784,7]
[392024357,1761107441444,-189.279845,0.00033784,7]
[392024358,1761107441453,-253.11,0.00033805,60]
[392024359,1761107441462,-158.97718663,0.00033836,30]
[392024360,1761107441471,-520.05385867,0.00033853,2]
[392024361,1761107441480,-177.8092372,0.00033875,2]
[392024362,1761107441490,-1346.27,0.000339,7]
[392024363,1761107441498,-253.11,0.00033905,60]
[392024364,1761107441507,-276.45155934,0.00033945,2]
[392024365,1761107441517,-500.0,0.0003397,10]
[392024366,1761107441526,-500.0,0.0003397,30]
[392024367,1761107441535,-500.0,0.0003397,10]
[392024368,1761107441545,-500.0,0.0003397,10]
[392024369,1761107441554,-500.0,0.0003397,10]
[392024370,1761107441563,-503.8541256,0.0003397,30]
[392024371,1761107441572,-500.0,0.00033972,7]
[392024372,1761107441581,-500.0,0.00033972,7]
[392024373,1761107441591,-726.96,0.00033972,2]
[392024374,1761107441600,-654.05,0.00033972,3]
[392024375,1761107441609,-1269.67,0.00033972,2]
[392024376,1761107441618,-500.0,0.00033972,7]
[392024377,1761107441627,-396.80464033,0.00033972,2]
[392024378,1761107441637,-5059.0924761,0.0003398,2]
[392024379,1761107441646,-618.67817175,0.00033981,120]
[392024380,1761107441655,-205.18374,0.00034,120]
[392024381,1761107441664,-13597.41321991,0.00034,2]
[392024382,1761107441674,-160.0,0.00034,30]
[392024383,1761107441683,-202.96329083,0.00034,2]
[392024384,1761107441692,-154.82380695,0.00034,3]
[392024385,1761107441701,-200.4797,0.00034,120]
[392024386,1761107441710,-200.0,0.00034,120]
[392024387,1761107441719,-253.11,0.00034005,60]
[392024388,1761107441728,-574.20964785,0.0003409,10]
[392024389,1761107441737,-500.0,0.0003409,10]
[392024390,1761107441747,-5297.14,0.000341,14]
[392024391,1761107441756,-253.11,0.00034105,60]
[392024392,1761107441765,-700.0,0.0003415,7]
[392024393,1761107441775,-253.2,0.00034205,60]
[392024394,1761107441784,-500.0,0.00034209,30]
[392024395,1761107441794,-500.0,0.00034246,7]
[392024396,1761107441803,-500.0,0.00034246,7]
[392024397,1761107441812,-726.96,0.00034246,2]
[392024398,1761107441821,-654.05,0.00034246,3]
[392024399,1761107441831,-2999.0,0.00034246,120]
[392024400,1761107441842,-1269.67,0.00034246,2]
[392024401,1761107441852,-486.13000079,0.00034246,7]
[392024402,1761107441862,-177.8092372,0.0003436,2]
[392024403,1761107441871,-500.0,0.0003452,7]
[392024404,1761107441883,-500.0,0.0003452,7]
[392024405,1761107441893,-726.96,0.0003452,2]
[392024406,1761107441902,-654.05,0.0003452,3]
[392024407,1761107441912,-1269.67,0.0003452,2]
[392024408,1761107441921,-600.0,0.0003453,30]
[392024409,1761107441930,-964.98,0.00034585,30]
[392024410,1761107441939,-615486.5397121,0.0003465,3]
[392024411,1761107441949,-500.0,0.00034757,30]
[392024412,1761107441958,-502.5,0.00034775,2]
[392024413,1761107441967,-500.0,0.00034794,7]
[392024414,1761107441977,-500.0,0.00034794,7]
[392024415,1761107441986,-726.96,0.00034794,2]
[392024416,1761107441996,-654.05,0.00034794,3]
[392024417,1761107442005,-1269.67,0.00034794,2]
[392024418,1761107442014,-10123.47434034,0.00034845,2]
[392024419,1761107442024,-177.8092372,0.00034845,2]
[392024420,1761107442033,-601.82278169,0.00034845,2]
[392024421,1761107442043,-818.59963613,0.00034848,2]
[392024422,1761107442052,-202.5484334,0.0003486,2]
[392024423,1761107442061,-151.0,0.0003487,30]
[392024424,1761107442071,-370000.0,0.0003487,2]
[392024425,1761107442080,-1003.123706,0.000349,16]
[392024426,1761107442089,-250.0,0.000349,10]
[392024427,1761107442099,-150.0,0.000349,2]
[392024428,1761107442109,-1708.65,0.000349,14]
[392024429,1761107442118,-300.0,0.000349,24]
[392024430,1761107442127,-300.0,0.000349,24]
[392024431,1761107442138,-165.0,0.00034909,7]
[392024432,1761107442148,-175.0,0.00034909,7]
[392024433,1761107442158,-165.0,0.00034909,7]
[392024434,1761107442167,-179.60328872,0.00034909,7]
[392024435,1761107442177,-156.23380579,0.00034909,7]
[392024436,1761107442186,-165.0,0.00034909,7]
[392024437,1761107442196,-166.0,0.00034909,7]
[392024438,1761107442206,-165.0,0.00034909,7]
[392024439,1761107442219,-166.0,0.00034909,7]
[392024440,1761107442228,-167.32785088,0.00034909,7]
[392024441,1761107442238,-163.0,0.00034909,7]
[392024442,1761107442247,-163.0,0.00034909,7]
[392024443,1761107442256,-163.0,0.00034909,7]
[392024444,1761107442266,-167.0,0.00034909,7]
[392024445,1761107442275,-151.76988818,0.00034909,7]
[392024446,1761107442284,-167.0,0.00034909,7]
[392024447,1761107442294,-330.0,0.00034909,7]
[392024448,1761107442304,-167.0,0.00034909,7]
[392024449,1761107442313,-166.0,0.00034909,7]
[392024450,1761107442322,-299.2825648,0.00034909,7]
[392024451,1761107442332,-330.0,0.00034909,7]
[392024452,1761107442341,-166.0,0.00034909,7]
[392024453,1761107442351,-330.0,0.00034909,7]
[392024454,1761107442360,-330.0,0.00034909,7]
[392024455,1761107442370,-166.0,0.00034909,7]
[392024456,1761107442380,-330.0,0.00034909,7]
[392024457,1761107442389,-166.0,0.00034909,7]
[392024458,1761107442399,-330.0,0.00034909,7]
[392024459,1761107442409,-330.0,0.00034909,7]
[392024460,1761107442418,-330.0,0.00034909,7]
[392024461,1761107442427,-330.0,0.00034909,7]
[392024462,1761107442437,-330.0,0.00034909,7]
[392024463,1761107442446,-330.0,0.00034909,7]
[392024464,1761107442455,-277.11343996,0.00034909,7]
[392024466,1761107442464,-2999.0,0.00034931,120]
[392024468,1761107442473,-2005.58338126,0.00034944,120]
[392024469,1761107442482,-2000.0,0.00034944,40]
[392024471,1761107442492,-10000.0,0.00034945,2]
[392024474,1761107442501,-10000.0,0.00034945,2]
[392024476,1761107442510,-10000.0,0.00034945,2]
[392024478,1761107442519,-10000.0,0.00034945,2]
[392024480,1761107442528,-10000.0,0.00034945,2]